fUST/lending_fUST_20250625
["ID","MTS","AMOUNT","RATE_DAILY","PERIOD"]
[367536757,1750848652717,-151.0,0.00019329,2]
[367536758,1750848652726,-402.90321401,0.00019536,2]
[367536759,1750848652738,-15117.06891131,0.00019536,2]
[367536761,1750848748766,42614.1202919,0.000245,120]
[367536762,1750848755330,10403.66065943,0.00016071,2]
[367536763,1750848755354,5459.00849397,0.00016071,2]
[367536764,1750848794195,3000.0,0.00023,30]
[367536765,1750848927384,10000.0,0.00023,30]
[367536766,1750848934170,10000.0,0.00023,30]
[367536767,1750848942359,10000.0,0.00023,30]
[367536784,1750848992690,10000.0,0.00023,30]
[367536785,1750849002421,10000.0,0.00023,30]
[367536786,1750849458875,-4993.0,0.00016288,2]
[367536787,1750849463492,2035.85,0.000229,30]
[367536788,1750849594204,5000.0,0.000161,2]
[367536790,1750849653339,165.70166,0.00013699,2]
[367536792,1750849776798,2300.73,0.00022941,30]
[367536813,1750849832552,-5000.0,0.00016355,2]
[367536815,1750849832562,-205.61546908,0.00016687,2]
[367536817,1750849832571,-151.0,0.00016786,2]
[367536819,1750849832580,-300.0,0.00016793,2]
[367536821,1750849832589,-1200.0,0.00016793,2]
[367536823,1750849832598,-1200.0,0.00016794,2]
[367536825,1750849832608,-500.0,0.00016794,2]
[367536827,1750849832618,-500.0,0.00016794,2]
[367536829,1750849832627,-161.02162801,0.00016795,2]
[367536831,1750849832636,-500.0,0.00016795,2]
[367536833,1750849832646,-460.0,0.00016795,2]
[367536835,1750849832655,-394.29574092,0.00016795,2]
[367536837,1750849832665,-460.0,0.00016795,2]
[367536839,1750849832674,-1104.52,0.00016795,2]
[367536841,1750849832684,-460.0,0.00016795,2]
[367536843,1750849832693,-460.0,0.00016795,2]
[367536845,1750849832702,-598.06,0.00016795,2]
[367536847,1750849832711,-460.0,0.00016795,2]
[367536849,1750849832720,-460.0,0.00016795,2]
[367536851,1750849832729,-460.0,0.00016795,2]
[367536853,1750849832739,-522.8,0.00016795,2]
[367536855,1750849832748,-460.0,0.00016795,2]
[367536857,1750849832758,-500.0,0.00016795,2]
[367536859,1750849832767,-500.0,0.00016795,2]
[367536861,1750849832776,-260.02696008,0.00016795,2]
[367536863,1750849832785,-643.16738328,0.00016795,2]
[367536865,1750849832794,-500.0,0.00016795,2]
[367536867,1750849832804,-500.0,0.00016795,2]
[367536869,1750849832813,-500.0,0.00016795,2]
[367536871,1750849832822,-208.80416456,0.00016795,2]
[367536873,1750849832831,-500.0,0.00016795,2]
[367536875,1750849832841,-505.82440206,0.00016796,2]
[367536877,1750849832850,-460.0,0.00016796,2]
[367536879,1750849832860,-460.0,0.00016796,2]
[367536881,1750849832870,-460.36280695,0.00016796,2]
[367536883,1750849832881,-460.0,0.00016796,2]
[367536886,1750849832891,-169.18876401,0.00016796,2]
[367536888,1750849832911,-290.81123599,0.00016796,2]
[367536890,1750849832920,-109.7164272,0.00016796,2]
[367536892,1750849832931,-410.24996366,0.00016796,2]
[367536894,1750849832941,-460.0,0.00016796,2]
[367536896,1750849832950,-111.28672059,0.00016796,2]
[367536898,1750849832962,-348.71327941,0.00016796,2]
[367536900,1750849832971,-249.45144,0.00016796,2]
[367536902,1750849832983,-210.54856,0.00016796,2]
[367536904,1750849832992,-460.0,0.00016796,2]
[367536905,1750849833001,-460.0,0.00016796,2]
[367536906,1750849833011,-460.0,0.00016796,2]
[367536907,1750849833020,-291.69612413,0.00016796,2]
[367536908,1750849833030,-460.0,0.00016796,2]
[367536909,1750849833039,-460.0,0.00016796,2]
[367536910,1750849833049,-460.0,0.00016796,2]
[367536911,1750849833059,-460.0,0.00016796,2]
[367536912,1750849833069,-460.0,0.00016796,2]
[367536913,1750849833079,-460.0,0.00016796,2]
[367536914,1750849833088,-460.0,0.00016796,2]
[367536915,1750849833098,-460.0,0.00016796,2]
[367536916,1750849833108,-460.0,0.00016796,2]
[367536917,1750849833118,-461.4562673,0.00016796,2]
[367536918,1750849833127,-460.0,0.00016796,2]
[367536919,1750849833137,-464.41144134,0.00016796,2]
[367536920,1750849833150,-460.0,0.00016796,2]
[367536921,1750849833160,-460.0,0.00016796,2]
[367536922,1750849833170,-348.09956784,0.00016796,2]
[367536923,1750849833180,-358.90713673,0.00016796,2]
[367536924,1750849833190,-460.0,0.00016796,2]
[367536925,1750849833200,-460.0,0.00016796,2]
[367536926,1750849833209,-460.0,0.00016796,2]
[367536927,1750849833219,-460.0,0.00016796,2]
[367536928,1750849833228,-460.0,0.00016796,2]
[367536929,1750849833238,-460.0,0.00016796,2]
[367536930,1750849833247,-501.6,0.00016796,2]
[367536931,1750849833257,-460.0,0.00016796,2]
[367536932,1750849833266,-460.0,0.00016796,2]
[367536933,1750849833276,-460.0,0.00016796,2]
[367536934,1750849833285,-460.0,0.00016796,2]
[367536935,1750849833294,-460.0,0.00016796,2]
[367536936,1750849833303,-460.0,0.00016796,2]
[367536937,1750849833313,-460.0,0.00016796,2]
[367536938,1750849833323,-460.0,0.00016796,2]
[367536939,1750849833332,-460.0,0.00016796,2]
[367536940,1750849833342,-460.0,0.00016796,2]
[367536941,1750849833352,-460.0,0.00016796,2]
[367536942,1750849833362,-460.0,0.00016796,2]
[367536943,1750849833371,-460.0,0.00016796,2]
[367536944,1750849833380,-246.30384673,0.00016796,2]
[367536945,1750849833393,-253.69615327,0.00016796,2]
[367536946,1750849833403,-460.0,0.00016796,2]
[367536947,1750849833412,-460.0,0.00016796,2]
[367536948,1750849833422,-460.0,0.00016796,2]
[367536949,1750849833431,-460.0,0.00016796,2]
[367536950,1750849833441,-197.45688528,0.00016796,2]
[367536951,1750849833450,-460.0,0.00016796,2]
[367536952,1750849833462,-460.0,0.00016796,2]
[367536953,1750849833472,-460.0,0.00016796,2]
[367536954,1750849833484,-460.0,0.00016796,2]
[367536955,1750849833495,-460.0,0.00016796,2]
[367536956,1750849833505,-523.16,0.00016796,2]
[367536957,1750849833514,-460.0,0.00016796,2]
[367536958,1750849833524,-460.0,0.00016796,2]
[367536959,1750849833533,-8.67353841,0.00016796,2]
[367536974,1750849838484,-451.32646159,0.00016796,2]
[367536975,1750849838494,-460.0,0.00016796,2]
[367536976,1750849838503,-460.0,0.00016796,2]
[367536977,1750849838513,-465.56153685,0.00016796,2]
[367536978,1750849838522,-460.0,0.00016796,2]
[367536979,1750849838531,-63.90843627,0.00016796,2]
[367536980,1750849838566,-396.09156373,0.00016796,2]
[367536981,1750849838576,-460.0,0.00016796,2]
[367536982,1750849838585,-460.0,0.00016796,2]
[367536983,1750849838595,-460.0,0.00016796,2]
[367536984,1750849838605,-460.0,0.00016796,2]
[367536985,1750849838615,-188.80843624,0.00016796,2]
[367536986,1750849838639,-271.19156376,0.00016796,2]
[367536987,1750849838648,-460.0,0.00016796,2]
[367536988,1750849838658,-460.0,0.00016796,2]
[367536989,1750849838667,-460.0,0.00016796,2]
[367536990,1750849838677,-460.0,0.00016796,2]
[367536991,1750849838686,-460.0,0.00016796,2]
[367536992,1750849838695,-460.0,0.00016796,2]
[367536993,1750849838704,-466.6039217,0.00016796,2]
[367536994,1750849838714,-460.0,0.00016796,2]
[367536996,1750849838723,-460.0,0.00016796,2]
[367536998,1750849838733,-460.0,0.00016796,2]
[367537000,1750849838743,-464.34,0.00016796,2]
[367537001,1750849838752,-460.0,0.00016796,2]
[367537002,1750849838762,-504.94,0.00016796,2]
[367537003,1750849838771,-460.0,0.00016796,2]
[367537004,1750849838780,-460.0,0.00016796,2]
[367537005,1750849838790,-460.0,0.00016796,2]
[367537006,1750849838799,-460.0,0.00016796,2]
[367537007,1750849838809,-460.0,0.00016796,2]
[367537008,1750849838818,-460.0,0.00016796,2]
[367537009,1750849838827,-460.0,0.00016796,2]
[367537010,1750849838836,-460.0,0.00016796,2]
[367537011,1750849838846,-270.32496706,0.00016796,2]
[367537012,1750849838855,-460.0,0.00016796,2]
[367537013,1750849838864,-460.0,0.00016796,2]
[367537014,1750849838874,-500.0,0.00016796,2]
[367537015,1750849838884,-500.0,0.00016796,2]
[367537016,1750849838894,-163.06900269,0.00016796,2]
[367537017,1750849838906,-296.93099731,0.00016796,2]
[367537018,1750849838916,-26.47839903,0.00016796,2]
[367537019,1750849838927,-433.52160097,0.00016796,2]
[367537020,1750849838937,-460.0,0.00016796,2]
[367537021,1750849838946,-460.0,0.00016796,2]
[367537022,1750849838956,-500.0,0.00016796,2]
[367537023,1750849838965,-460.0,0.00016796,2]
[367537024,1750849838974,-460.0,0.00016796,2]
[367537025,1750849838984,-460.0,0.00016796,2]
[367537026,1750849838993,-460.0,0.00016796,2]
[367537027,1750849839003,-460.0,0.00016796,2]
[367537028,1750849839012,-258.91941248,0.00016796,2]
[367537029,1750849839021,-460.0,0.00016796,2]
[367537030,1750849839031,-460.0,0.00016796,2]
[367537031,1750849839193,-460.0,0.00016796,2]
[367537032,1750849839203,-460.0,0.00016796,2]
[367537033,1750849839212,-460.0,0.00016796,2]
[367537034,1750849839222,-460.0,0.00016796,2]
[367537035,1750849839231,-460.0,0.00016796,2]
[367537037,1750849839241,-460.0,0.00016796,2]
[367537038,1750849839250,-319.88750142,0.00016796,2]
[367537039,1750849839259,-460.0,0.00016796,2]
[367537040,1750849839268,-460.0,0.00016796,2]
[367537041,1750849839277,-460.0,0.00016796,2]
[367537042,1750849839286,-460.0,0.00016796,2]
[367537043,1750849839295,-460.0,0.00016796,2]
[367537044,1750849839304,-462.64542683,0.00016796,2]
[367537045,1750849839313,-460.0,0.00016796,2]
[367537046,1750849839323,-415.87444028,0.00016796,2]
[367537047,1750849839331,-460.0,0.00016796,2]
[367537048,1750849839341,-1136.36,0.00016796,2]
[367537049,1750849839350,-460.0,0.00016796,2]
[367537050,1750849839359,-460.0,0.00016796,2]
[367537051,1750849839371,-460.0,0.00016796,2]
[367537052,1750849839380,-460.0,0.00016796,2]
[367537053,1750849839390,-460.0,0.00016796,2]
[367537054,1750849839400,-460.0,0.00016796,2]
[367537055,1750849839410,-460.0,0.00016796,2]
[367537056,1750849839419,-460.0,0.00016796,2]
[367537057,1750849839428,-460.0,0.00016796,2]
[367537058,1750849839438,-460.0,0.00016796,2]
[367537059,1750849839450,-436.13035792,0.00016796,2]
[367537060,1750849839462,-460.0,0.00016796,2]
[367537061,1750849839472,-460.0,0.00016796,2]
[367537062,1750849839483,-460.0,0.00016796,2]
[367537063,1750849839493,-460.0,0.00016796,2]
[367537064,1750849839505,-460.0,0.00016796,2]
[367537065,1750849839515,-718.31,0.00016796,2]
[367537066,1750849839524,-430.0,0.00016796,2]
[367537067,1750849839535,-460.0,0.00016796,2]
[367537068,1750849839545,-460.0,0.00016796,2]
[367537069,1750849839555,-22.16174001,0.00016796,2]
[367537070,1750849839569,-325.76237576,0.00016796,2]
[367537112,1750849840900,-112.07588423,0.00016796,2]
[367537113,1750849840910,-186.15981192,0.00016796,2]
[367537116,1750849840954,-273.84018808,0.00016796,2]
[367537118,1750849840963,-219.44237345,0.00016796,2]
[367537392,1750849843633,-240.55762655,0.00016796,2]
[367537394,1750849843642,-371.28670444,0.00016796,2]
[367537396,1750849843652,-460.0,0.00016796,2]
[367537398,1750849843661,-477.09117705,0.00016796,2]
[367537401,1750849843680,-460.0,0.00016796,2]
[367537403,1750849843691,-460.0,0.00016796,2]
[367537405,1750849843701,-460.0,0.00016796,2]
[367537407,1750849843711,-460.0,0.00016796,2]
[367537409,1750849843721,-463.12387711,0.00016796,2]
[367537411,1750849843731,-1556.07,0.00016796,2]
[367537413,1750849843742,-460.0,0.00016796,2]
[367537415,1750849843751,-460.0,0.00016796,2]
[367537419,1750849843762,-460.0,0.00016796,2]
[367537422,1750849843771,-460.0,0.00016796,2]
[367537424,1750849843781,-460.0,0.00016796,2]
[367537426,1750849843791,-500.0,0.00016796,2]
[367537428,1750849843800,-500.0,0.00016796,2]
[367537430,1750849843809,-460.0,0.00016796,2]
[367537432,1750849843819,-468.8065227,0.00016796,2]
[367537434,1750849843829,-460.0,0.00016796,2]
[367537436,1750849843839,-478.89,0.00016796,2]
[367537438,1750849843848,-460.0,0.00016796,2]
[367537440,1750849843857,-460.0,0.00016796,2]
[367537442,1750849843867,-1289.45,0.00016796,2]
[367537444,1750849843877,-460.0,0.00016796,2]
[367537446,1750849843887,-460.0,0.00016796,2]
[367537448,1750849843897,-460.0,0.00016796,2]
[367537450,1750849843907,-460.0,0.00016796,2]
[367537452,1750849843917,-153.23896903,0.00016796,2]
[367537454,1750849843927,-1319.16,0.00016796,2]
[367537456,1750849843937,-460.0,0.00016796,2]
[367537458,1750849843947,-2271.61,0.00016796,2]
[367537461,1750849843957,-460.0,0.00016796,2]
[367537463,1750849843970,-523.43,0.00016796,2]
[367537465,1750849843979,-460.0,0.00016796,2]
[367537467,1750849843989,-460.0,0.00016796,2]
[367537469,1750849843999,-460.0,0.00016796,2]
[367537471,1750849844009,-460.0,0.00016796,2]
[367537473,1750849844018,-2064.43,0.00016796,2]
[367537475,1750849844027,-460.0,0.00016796,2]
[367537477,1750849844037,-460.0,0.00016796,2]
[367537479,1750849844046,-460.0,0.00016796,2]
[367537481,1750849844056,-432.221883,0.00016796,2]
[367537483,1750849844065,-300.0,0.00016796,2]
[367537485,1750849844075,-460.0,0.00016796,2]
[367537487,1750849844085,-179.11155793,0.00016796,2]
[367537489,1750849844095,-461.38919986,0.00016796,2]
[367537491,1750849844104,-460.0,0.00016796,2]
[367537493,1750849844114,-460.0,0.00016796,2]
[367537495,1750849844124,-460.0,0.00016796,2]
[367537497,1750849844133,-460.0,0.00016796,2]
[367537499,1750849844146,-960.46,0.00016796,2]
[367537501,1750849844156,-460.0,0.00016796,2]
[367537503,1750849844166,-460.0,0.00016796,2]
[367537505,1750849844175,-460.0,0.00016796,2]
[367537507,1750849844186,-460.0,0.00016796,2]
[367537509,1750849844195,-460.0,0.00016796,2]
[367537511,1750849844205,-460.0,0.00016796,2]
[367537513,1750849844214,-460.0,0.00016796,2]
[367537515,1750849844225,-505.46,0.00016796,2]
[367537517,1750849844234,-246.23221673,0.00016796,2]
[367537519,1750849844243,-1218.56,0.00016796,2]
[367537521,1750849844253,-460.0,0.00016796,2]
[367537523,1750849844263,-460.0,0.00016796,2]
[367537525,1750849844272,-461.83480314,0.00016796,2]
[367537528,1750849844282,-460.0,0.00016796,2]
[367537530,1750849844292,-460.0,0.00016796,2]
[367537532,1750849844304,-460.0,0.00016796,2]
[367537534,1750849844314,-792.96,0.00016796,2]
[367537536,1750849844323,-460.0,0.00016796,2]
[367537538,1750849844333,-460.0,0.00016796,2]
[367537540,1750849844343,-460.0,0.00016796,2]
[367537542,1750849844352,-588.22,0.00016796,2]
[367537544,1750849844362,-460.0,0.00016796,2]
[367537546,1750849844371,-460.0,0.00016796,2]
[367537548,1750849844381,-460.0,0.00016796,2]
[367537550,1750849844391,-602.28,0.00016796,2]
[367537552,1750849844401,-460.0,0.00016796,2]
[367537555,1750849844410,-460.0,0.00016796,2]
[367537557,1750849844420,-298.23569615,0.00016796,2]
[367537559,1750849844429,-460.0,0.00016796,2]
[367537561,1750849844438,-460.0,0.00016796,2]
[367537563,1750849844448,-460.0,0.00016796,2]
[367537565,1750849844457,-460.0,0.00016796,2]
[367537567,1750849844467,-460.0,0.00016796,2]
[367537569,1750849844476,-460.0,0.00016796,2]
[367537571,1750849844486,-460.0,0.00016796,2]
[367537573,1750849844496,-460.0,0.00016796,2]
[367537575,1750849844505,-460.0,0.00016796,2]
[367537577,1750849844515,-460.0,0.00016796,2]
[367537579,1750849844524,-460.0,0.00016796,2]
[367537581,1750849844533,-460.0,0.00016796,2]
[367537583,1750849844543,-452.90703362,0.00016796,2]
[367537585,1750849844552,-460.0,0.00016796,2]
[367537587,1750849844561,-460.0,0.00016796,2]
[367537589,1750849844570,-460.0,0.00016796,2]
[367537591,1750849844580,-460.0,0.00016796,2]
[367537593,1750849844589,-460.0,0.00016796,2]
[367537595,1750849844599,-460.0,0.00016796,2]
[367537597,1750849844608,-460.0,0.00016796,2]
[367537599,1750849844618,-460.0,0.00016796,2]
[367537601,1750849844627,-460.0,0.00016796,2]
[367537603,1750849844636,-1016.52,0.00016796,2]
[367537604,1750849844647,-461.46830247,0.00016796,2]
[367537605,1750849844657,-460.0,0.00016796,2]
[367537606,1750849844667,-460.0,0.00016796,2]
[367537607,1750849844676,-431.6535325,0.00016796,2]
[367537608,1750849844685,-460.0,0.00016796,2]
[367537609,1750849844695,-460.0,0.00016796,2]
[367537610,1750849844704,-460.0,0.00016796,2]
[367537611,1750849844713,-589.30978169,0.00016796,2]
[367537612,1750849844723,-460.0,0.00016796,2]
[367537613,1750849844732,-460.0,0.00016796,2]
[367537614,1750849844743,-460.0,0.00016796,2]
[367537615,1750849844753,-463.24713293,0.00016796,2]
[367537616,1750849844762,-460.0,0.00016796,2]
[367537618,1750849844772,-467.54238048,0.00016796,2]
[367537621,1750849844783,-1208.72,0.00016796,2]
[367537623,1750849844792,-956.38,0.00016796,2]
[367537625,1750849844801,-460.0,0.00016796,2]
[367537627,1750849844811,-460.0,0.00016796,2]
[367537629,1750849844820,-460.0,0.00016796,2]
[367537631,1750849844829,-460.0,0.00016796,2]
[367537633,1750849844839,-467.81953163,0.00016796,2]
[367537635,1750849844848,-603.60623476,0.00016797,2]
[367537637,1750849844858,-466.14675187,0.00016797,2]
[367537639,1750849844867,-247.83973331,0.00016797,2]
[367537641,1750849844876,-274.86498266,0.00016797,2]
[367537643,1750849844886,-460.0,0.00016797,2]
[367537645,1750849844896,-460.0,0.00016797,2]
[367537647,1750849844906,-460.0,0.00016797,2]
[367537649,1750849844916,-460.0,0.00016797,2]
[367537651,1750849844926,-460.0,0.00016797,2]
[367537653,1750849844935,-460.0,0.00016797,2]
[367537655,1750849844944,-460.0,0.00016797,2]
[367537657,1750849844954,-460.0,0.00016797,2]
[367537659,1750849844964,-460.0,0.00016797,2]
[367537661,1750849844973,-460.0,0.00016797,2]
[367537663,1750849844983,-460.0,0.00016797,2]
[367537665,1750849844992,-460.0,0.00016797,2]
[367537667,1750849845003,-460.0,0.00016797,2]
[367537670,1750849845013,-460.0,0.00016797,2]
[367537672,1750849845023,-460.0,0.00016797,2]
[367537674,1750849845033,-460.0,0.00016797,2]
[367537675,1750849845042,-460.0,0.00016797,2]
[367537678,1750849845052,-460.0,0.00016797,2]
[367537680,1750849845062,-460.0,0.00016797,2]
[367537682,1750849845071,-460.0,0.00016797,2]
[367537684,1750849845080,-460.0,0.00016797,2]
[367537686,1750849845090,-438.70732351,0.00016797,2]
[367537688,1750849845101,-460.0,0.00016797,2]
[367537690,1750849845111,-460.0,0.00016797,2]
[367537692,1750849845121,-460.0,0.00016797,2]
[367537694,1750849845131,-460.0,0.00016797,2]
[367537696,1750849845145,-460.0,0.00016797,2]
[367537698,1750849845155,-460.0,0.00016797,2]
[367537700,1750849845165,-460.0,0.00016797,2]
[367537702,1750849845174,-460.0,0.00016797,2]
[367537704,1750849845184,-460.0,0.00016797,2]
[367537706,1750849845193,-500.0,0.00016857,2]
[367537708,1750849845203,-500.0,0.00016857,2]
[367537710,1750849845213,-1000.0,0.000169,2]
[367537712,1750849845222,-823.79238946,0.0001697,2]
[367537714,1750849845232,-461.49,0.00016989,3]
[367537716,1750849845241,-500.0,0.00016999,2]
[367537718,1750849845251,-500.0,0.00016999,2]
[367537720,1750849845260,-374.78,0.00016999,2]
[367537722,1750849845270,-505.83,0.0001701,3]
[367537724,1750849845280,-1000.0,0.0001702,2]
[367537726,1750849845289,-153.82,0.0001704,3]
[367537728,1750849845299,-612.89,0.0001705,3]
[367537730,1750849845309,-1011.67,0.0001705,3]
[367537732,1750849845318,-615.3,0.0001705,3]
[367537734,1750849845328,-307.65,0.0001705,3]
[367537737,1750849845338,-1121.62,0.0001706,3]
[367537739,1750849845348,-560.81,0.0001706,3]
[367537741,1750849845359,-280.4,0.0001706,3]
[367537743,1750849845367,-841.23,0.0001706,3]
[367537745,1750849845377,-408.58,0.0001706,3]
[367537747,1750849845386,-204.29,0.0001706,3]
[367537749,1750849845397,-1104.52,0.00017069,2]
[367537751,1750849845406,-460.0,0.00017069,2]
[367537753,1750849845415,-460.0,0.00017069,2]
[367537755,1750849845425,-457.83,0.00017069,2]
[367537757,1750849845434,-493.71797296,0.00017069,2]
[367537759,1750849845444,-471.94213755,0.0001707,2]
[367537761,1750849845453,-460.0,0.0001707,2]
[367537763,1750849845462,-410.35596139,0.0001707,2]
[367537765,1750849845484,-581.67089768,0.0001707,2]
[367537767,1750849845493,-447.90001521,0.0001707,2]
[367537769,1750849845503,-497.35794562,0.0001707,2]
[367537771,1750849845512,-481.9991098,0.0001707,2]
[367537773,1750849845521,-460.0,0.0001707,2]
[367537775,1750849845530,-440.0,0.0001707,2]
[367537777,1750849845539,-460.0,0.0001707,2]
[367537779,1750849845549,-460.0,0.0001707,2]
[367537781,1750849845558,-460.0,0.0001707,2]
[367537783,1750849845568,-454.72634157,0.0001707,2]
[367537785,1750849845577,-460.0,0.0001707,2]
[367537786,1750849845586,-343.53815493,0.0001707,2]
[367537788,1750849845596,-460.0,0.0001707,2]
[367537789,1750849845605,-242.9,0.0001707,2]
[367537791,1750849845615,-460.0,0.0001707,2]
[367537792,1750849845624,-460.0,0.0001707,2]
[367537794,1750849845635,-529.89902784,0.0001707,2]
[367537795,1750849845646,-460.0,0.0001707,2]
[367537797,1750849845656,-460.0,0.0001707,2]
[367537799,1750849845667,-315.93231072,0.0001707,2]
[367537800,1750849845676,-460.0,0.0001707,2]
[367537802,1750849845685,-474.67,0.0001707,2]
[367537803,1750849845695,-460.0,0.0001707,2]
[367537804,1750849845703,-602.63,0.0001707,2]
[367537806,1750849845713,-460.0,0.0001707,2]
[367537807,1750849845722,-403.24505231,0.0001707,2]
[367537809,1750849845731,-460.0,0.0001707,2]
[367537810,1750849845740,-460.0,0.0001707,2]
[367537812,1750849845749,-460.0,0.0001707,2]
[367537813,1750849845759,-460.0,0.0001707,2]
[367537815,1750849845768,-460.0,0.0001707,2]
[367537817,1750849845778,-460.0,0.0001707,2]
[367537818,1750849845787,-460.0,0.0001707,2]
[367537820,1750849845796,-460.0,0.0001707,2]
[367537821,1750849845805,-460.0,0.0001707,2]
[367537823,1750849845814,-213.74,0.0001707,2]
[367537825,1750849845823,-205.08,0.0001707,2]
[367537826,1750849845833,-460.0,0.0001707,2]
[367537828,1750849845842,-305.99304423,0.0001707,2]
[367537830,1750849845852,-460.0,0.0001707,2]
[367537831,1750849845861,-524.47,0.0001707,2]
[367537833,1750849845870,-460.0,0.0001707,2]
[367537834,1750849845879,-210.77,0.0001707,2]
[367537836,1750849845889,-247.06,0.0001707,2]
[367537838,1750849845898,-460.0,0.0001707,2]
[367537839,1750849845907,-441.51,0.0001707,2]
[367537841,1750849845917,-520.11,0.0001707,2]
[367537842,1750849845926,-460.0,0.0001707,2]
[367537844,1750849845936,-460.0,0.0001707,2]
[367537847,1750849845946,-460.0,0.0001707,2]
[367537849,1750849845955,-460.0,0.0001707,2]
[367537851,1750849845965,-460.0,0.0001707,2]
[367537854,1750849845974,-460.0,0.0001707,2]
[367537856,1750849845984,-460.0,0.0001707,2]
[367537858,1750849845996,-460.0,0.0001707,2]
[367537861,1750849846006,-1136.36,0.0001707,2]
[367537863,1750849846015,-212.92,0.0001707,2]
[367537866,1750849846025,-460.0,0.0001707,2]
[367537868,1750849846034,-460.0,0.0001707,2]
[367537870,1750849846043,-460.0,0.0001707,2]
[367537873,1750849846053,-460.0,0.0001707,2]
[367537875,1750849846062,-460.0,0.0001707,2]
[367537878,1750849846072,-718.31,0.0001707,2]
[367537879,1750849846082,-460.0,0.0001707,2]
[367537881,1750849846091,-460.0,0.0001707,2]
[367537883,1750849846100,-460.0,0.0001707,2]
[367537884,1750849846109,-551.71,0.0001707,2]
[367537886,1750849846119,-225.65,0.0001707,2]
[367537888,1750849846129,-460.0,0.0001707,2]
[367537889,1750849846141,-460.0,0.0001707,2]
[367537891,1750849846151,-460.0,0.0001707,2]
[367537893,1750849846161,-1556.07,0.0001707,2]
[367537894,1750849846170,-460.0,0.0001707,2]
[367537896,1750849846180,-460.0,0.0001707,2]
[367537898,1750849846190,-460.0,0.0001707,2]
[367537899,1750849846199,-460.0,0.0001707,2]
[367537901,1750849846209,-297.94059084,0.0001707,2]
[367537902,1750849846220,-563.50131298,0.0001707,2]
[367537904,1750849846230,-1289.45,0.0001707,2]
[367537906,1750849846239,-466.71687696,0.0001707,2]
[367537907,1750849846248,-460.0,0.0001707,2]
[367537909,1750849846258,-460.0,0.0001707,2]
[367537911,1750849846268,-1319.16,0.0001707,2]
[367537912,1750849846277,-2271.61,0.0001707,2]
[367537914,1750849846286,-460.0,0.0001707,2]
[367537925,1750849846439,-113.85805974,0.0001707,2]
[367537943,1750849846693,-346.14194026,0.0001707,2]
[367537945,1750849846703,-460.0,0.0001707,2]
[367537946,1750849846712,-269.34670669,0.0001707,2]
[367537949,1750849846725,-1795.08329331,0.0001707,2]
[367537951,1750849846733,-162.26,0.0001707,2]
[367537953,1750849846743,-460.0,0.0001707,2]
[367537955,1750849846752,-312.96308561,0.0001707,2]
[367537957,1750849846763,-460.0,0.0001707,2]
[367537960,1750849846772,-460.0,0.0001707,2]
[367537962,1750849846781,-960.46,0.0001707,2]
[367537964,1750849846790,-473.16,0.0001707,2]